[Event "XX Gran Hotel Bali-B 2023"]
[Site "Benidorm"]
[Date "2023.12.06"]
[Round "7.11"]
[White "Ferreruela Romero, Jose Joaquin"]
[Black "Castillo Garcia, Adrian"]
[Result "0-1"]
[ECO "B30"]
[WhiteElo "1877"]
[BlackElo "1974"]
[Annotator "NA"]
[PlyCount "98"]
[EventDate "2023.12.02"]
[EventType "swiss"]
[EventCountry "ESP"]
[SourceTitle "playchess.com"]
[Source "ChessBase"]
[SourceQuality "1"]
[TimeControl "5400+30"]

1. e4 {[%emt 0:11:08]} c5 {[%emt 0:00:50]} 2. Nf3 {[%emt 0:00:16]} Nc6 {[%emt 0:00:09]} 3. Be2 {[%emt 0:00:21]} g6 {[%emt 0:01:57]} 4. c3 {[%emt 0:00:26]} Nf6 {[%emt 0:00:10]} 5. e5 {[%emt 0:07:04]} Nd5 {[%emt 0:00:08]} 6. d4 {[%emt 0:00:17]} cxd4 {[%emt 0:00:07]} 7. cxd4 {[%emt 0:00:06]} Bg7 {[%emt 0:00:07]} 8. O-O {[%emt 0:00:30]} O-O {[%emt 0:00:52]} 9. Qb3 {[%emt 0:08:35]} Nc7 {[%emt 0:07:32]} 10. Bf4 {[%emt 0:01:25]} b6 {[%emt 0:08:48]} 11. Nc3 {[%emt 0:06:53]} d5 {[%emt 0:15:06]} 12. exd6 {[%emt 0:11:23]} Ne6 {[%emt 0:02:01]} 13. dxe7 {[%emt 0:03:26]} Qxe7 {[%emt 0:00:44]} 14. Nd5 {[%emt 0:06:47]} Qd8 {[%emt 0:03:01]} 15. Rfd1 {[%emt 0:03:44]} Na5 {[%emt 0:07:42]} 16. Qb5 {[%emt 0:00:09]} a6 {[%emt 0:01:22]} 17. Qxb6 {[%emt 0:00:15]} Qxd5 {[%emt 0:00:11]} 18. Bd2 {[%emt 0:00:09]} Nc6 {[%emt 0:06:36]} 19. Rac1 {[%emt 0:07:04]} Ncxd4 {[%emt 0:06:17]} 20. Nxd4 {[%emt 0:01:00]} Bxd4 {[%emt 0:02:17]} 21. Qb4 {[%emt 0:01:25]} a5 {[%emt 0:04:48]} 22. Qxf8+ {[%emt 0:03:02]} Kxf8 {[%emt 0:03:02]} 23. Bf3 {[%emt 0:00:29]} Qxf3 {[%emt 0:15:06]} 24. gxf3 {[%emt 0:01:11]} Bxb2 {[%emt 0:00:14]} 25. Rc2 {[%emt 0:01:19]} Bf6 {[%emt 0:00:25]} 26. Bxa5 {[%emt 0:00:20]} Nd4 {[%emt 0:00:39]} 27. Bb4+ {[%emt 0:00:24]} Kg7 {[%emt 0:00:28]} 28. Rc7 {[%emt 0:05:08]} Nxf3+ {[%emt 0:01:50]} 29. Kg2 {[%emt 0:01:11]} Nh4+ {[%emt 0:00:35]} 30. Kg1 {[%emt 0:00:45]} Bg4 {[%emt 0:00:14]} 31. Rdc1 {[%emt 0:04:17]} Rxa2 {[%emt 0:01:05]} 32. R7c2 {[%emt 0:01:36]} Ra8 {[%emt 0:03:04]} 33. Bc3 {[%emt 0:00:29]} Nf3+ {[%emt 0:00:31]} 34. Kg2 {[%emt 0:00:16]} Ne5 {[%emt 0:01:54]} 35. Bxe5 {[%emt 0:00:53]} Bxe5 {[%emt 0:00:04]} 36. Re1 {[%emt 0:00:45]} Ra5 {[%emt 0:00:46]} 37. Rec1 {[%emt 0:01:04]} Bf4 {[%emt 0:01:04]} 38. Rc5 {[%emt 0:00:31]} Ra3 {[%emt 0:00:06]} 39. R1c3 {[%emt 0:00:18]} Ra1 {[%emt 0:01:00]} 40. R3c4 {[%emt 0:00:33]} Bd6 {[%emt 0:01:24]} 41. Rc1 {[%emt 0:00:56]} Ra3 {[%emt 0:01:33]} 42. R5c3 {[%emt 0:00:33]} Ra5 {[%emt 0:00:13]} 43. Rc6 {[%emt 0:00:34]} Rd5 {[%emt 0:00:06]} 44. R6c2 {[%emt 0:04:00]} Rh5 {[%emt 0:00:44]} 45. Rh1 {[%emt 0:00:58]} Bh3+ {[%emt 0:06:08]} 46. Kf3 {[%emt 0:09:35]} Rf5+ {[%emt 0:00:00]} 47. Ke2 {[%emt 0:00:00]} Bc5 {[%emt 0:00:00]} 48. Ke1 {[%emt 0:00:00]} Re5+ {[%emt 0:00:00]} 49. Re2 {[%emt 0:00:00]} Bb4+ {[%emt 0:00:00]} 0-1

[Event "XX Gran Hotel Bali-B 2023"]
[Site "Benidorm"]
[Date "2023.12.06"]
[Round "7.12"]
[White "Gimeno Simo, Sergio"]
[Black "Buitron Ramil, David"]
[Result "0-1"]
[ECO "B76"]
[WhiteElo "1845"]
[BlackElo "1948"]
[Annotator "NA RC"]
[PlyCount "104"]
[EventDate "2023.12.02"]
[EventType "swiss"]
[EventCountry "ESP"]
[SourceTitle "playchess.com"]
[Source "ChessBase"]
[SourceQuality "1"]
[TimeControl "5400+30"]

1. e4 {[%emt 0:00:38]} c5 {[%emt 0:00:06]} 2. Nf3 {[%emt 0:00:22]} d6 {[%emt 0:00:05]} 3. d4 {[%emt 0:00:07]} cxd4 {[%emt 0:00:03]} 4. Nxd4 {[%emt 0:00:05]} Nf6 {[%emt 0:00:04]} 5. Nc3 {[%emt 0:00:38]} g6 {[%emt 0:00:07]} 6. Be3 {[%emt 0:00:39]} Bg7 {[%emt 0:00:01]} 7. f3 {[%emt 0:00:18]} O-O {[%emt 0:00:06]} 8. Qd2 {[%emt 0:00:47]} Nc6 {[%emt 0:00:06]} 9. O-O-O {[%emt 0:00:18]} d5 {[%emt 0:00:04]} 10. exd5 {[%emt 0:01:46]} Nxd5 {[%emt 0:00:15]} 11. Nxc6 {[%emt 0:00:13]} bxc6 {[%emt 0:00:01]} 12. Bd4 {[%emt 0:00:14]} Bxd4 {[%emt 0:03:44]} 13. Qxd4 {[%emt 0:00:28]} Qb6 {[%emt 0:00:02]} 14. Nxd5 {[%emt 0:04:23]} cxd5 {[%emt 0:01:37]} 15. h4 {[%emt 0:05:49]} Qxd4 {[%emt 0:02:33]} 16. Rxd4 {[%emt 0:01:21]} e6 {[%emt 0:00:48]} 17. h5 {[%emt 0:00:23]} Kg7 {[%emt 0:00:08]} 18. hxg6 {[%emt 0:04:31]} hxg6 {[%emt 0:00:02]} 19. Bd3 {[%emt 0:35:03]} Bb7 {[%emt 0:03:03]} 20. Rdh4 {[%emt 0:01:11]} Kf6 {[%emt 0:02:00]} 21. f4 {[%emt 0:03:20]} a5 {[%emt 0:02:07]} 22. Rh7 {[%emt 0:02:24]} Ba6 {[%emt 0:01:17]} 23. Bxa6 {[%emt 0:02:29]} Rxa6 {[%emt 0:00:01]} 24. Rh8 {[%emt 0:00:17]} Rxh8 {[%emt 0:00:23]} 25. Rxh8 {[%emt 0:00:32]} Kf5 {[%emt 0:00:14]} 26. Rh4 {[%emt 0:03:07]} Rb6 {[%emt 0:00:34]} 27. b3 {[%emt 0:00:44]} Rb4 {[%emt 0:01:12]} 28. g3 {[%emt 0:00:39]} Ke4 {[%emt 0:01:40]} 29. c3 {[%emt 0:11:44]} Rb7 {[%emt 0:00:22]} 30. Kd2 {[%emt 0:00:16]} Kf3 {[%emt 0:00:10]} 31. Rh1 {[%emt 0:00:18]} Kxg3 {[%emt 0:01:48]} 32. Ke3 {[%emt 0:00:24]} Rc7 {[%emt 0:02:51]} 33. Rg1+ {[%emt 0:03:06]} Kh2 {[%emt 0:00:57]} 34. Rc1 {[%emt 0:00:07]} f6 {[%emt 0:00:28]} 35. Kf3 {[%emt 0:00:31]} e5 {[%emt 0:01:00]} 36. c4 {[%emt 0:06:48]} Rc5 {[%emt 0:03:52]} 37. a3 {[%emt 0:01:24]} dxc4 {[%emt 0:03:07]} 38. Rxc4 {[%emt 0:01:11]} Rb5 {[%emt 0:00:25]} 39. b4 {[%emt 0:01:49]} axb4 {[%emt 0:01:14]} 40. axb4 {[%emt 0:00:31]} exf4 {[%emt 0:00:23]} 41. Rxf4 {[%emt 0:01:21]} f5 {[%emt 0:00:56]} 42. Rc4 {[%emt 0:03:18]} g5 {[%emt 0:01:08]} 43. Rc2+ {[%emt 0:00:11]} Kh3 {[%emt 0:00:23]} 44. Rb2 {[%emt 0:00:06]} g4+ {[%emt 0:00:48]} 45. Kf4 {[%emt 0:00:56]} g3 {[%emt 0:01:26]} 46. Rb3 {[%emt 0:04:33]} Kh4 {[%emt 0:01:50]} 47. Rb1 {[%emt 0:00:55]} g2 {[%emt 0:01:11]} 48. Kf3 {[%emt 0:00:50]} Kh3 {[%emt 0:00:20]} 49. Kf2 {[%emt 0:00:27]} f4 {[%emt 0:00:25]} 50. Kg1 {[%emt 0:01:27]} Kg3 {[%emt 0:00:58]} 51. Rb2 {[%emt 0:00:25]} f3 {[%emt 0:00:09]} 52. Rb3 {[%emt 0:00:08]} Rxb4 {[%emt 0:00:09]} 0-1

[Event "XX Gran Hotel Bali-B 2023"]
[Site "Benidorm"]
[Date "2023.12.07"]
[Round "8.1"]
[White "Fabre Massana, Miquel"]
[Black "Navarro Rico, Lluis"]
[Result "*"]
[ECO "C42"]
[WhiteElo "1982"]
[BlackElo "1937"]
[Annotator "RC"]
[PlyCount "59"]
[EventDate "2023.12.02"]
[EventType "swiss"]
[EventCountry "ESP"]
[SourceTitle "playchess.com"]
[Source "ChessBase"]
[SourceQuality "1"]
[TimeControl "5400+30"]

1. e4 {[%emt 0:00:03]} e5 {[%emt 0:01:38]} 2. Nf3 {[%emt 0:00:39]} Nf6 {[%emt 0:00:07]} 3. Nxe5 {[%emt 0:01:07]} d6 {[%emt 0:00:09]} 4. Nf3 {[%emt 0:00:22]} Nxe4 {[%emt 0:00:06]} 5. d4 {[%emt 0:00:41]} d5 {[%emt 0:00:21]} 6. Bd3 {[%emt 0:01:14]} Nc6 {[%emt 0:01:10]} 7. O-O {[%emt 0:03:43]} Be7 {[%emt 0:00:04]} 8. Re1 {[%emt 0:01:06]} Bg4 {[%emt 0:00:11]} 9. c3 {[%emt 0:01:53]} Nf6 {[%emt 0:03:06]} 10. Bf4 {[%emt 1:24:42]} O-O {[%emt 0:01:27]} 11. Nbd2 {[%emt 0:00:24]} Bd6 {[%emt 0:04:40]} 12. Bxd6 {[%emt 0:01:01]} Qxd6 {[%emt 0:00:45]} 13. Qc2 {[%emt 0:04:01]} Rfe8 {[%emt 0:00:54]} 14. h3 {[%emt 0:01:25]} Bh5 {[%emt 0:00:35]} 15. Qb3 {[%emt 0:05:38]} b6 {[%emt 0:01:32]} 16. Qa4 {[%emt 0:02:09]} Bg6 {[%emt 0:15:12]} 17. Rxe8+ {[%emt 0:05:43]} Nxe8 {[%emt 0:07:10]} 18. Bb5 {[%emt 0:01:05]} Ne7 {[%emt 0:00:19]} 19. Bxe8 {[%emt 0:03:37]} c6 {[%emt 0:00:19]} 20. Re1 {[%emt 0:06:36]} Rxe8 {[%emt 0:04:37]} 21. Qxa7 {[%emt 0:00:54]} Qd8 {[%emt 0:00:13]} 22. Qb7 {[%emt 0:04:31]} Bf5 {[%emt 0:02:14]} 23. b4 {[%emt 0:01:19]} Kf8 {[%emt 0:01:48]} 24. a4 {[%emt 0:50:43]} f6 {[%emt 0:53:53]} 25. Ra1 {[%emt 0:01:31]} Qb8 {[%emt 0:46:17]} 26. Qxb8 {[%emt 0:01:00]} Rxb8 {[%emt 0:00:04]} 27. a5 {[%emt 0:00:58]} Ra8 {[%emt 0:00:33]} 28. Kh2 {[%emt 0:02:44]} Nc8 {[%emt 0:01:11]} 29. Kg3 {[%emt 0:03:09]} Ke7 {[%emt 0:38:51]} 30. Kf4 {[%emt 0:43:21]} *

[Event "XX Gran Hotel Bali-B 2023"]
[Site "Benidorm"]
[Date "2023.12.07"]
[Round "8.2"]
[White "Sham R"]
[Black "Talledo Lagos, Cesar Frank"]
[Result "*"]
[ECO "B14"]
[WhiteElo "1828"]
[BlackElo "1993"]
[Annotator "NA RC"]
[PlyCount "53"]
[EventDate "2023.12.02"]
[EventType "swiss"]
[EventCountry "ESP"]
[SourceTitle "playchess.com"]
[Source "ChessBase"]
[SourceQuality "1"]
[TimeControl "5400+30"]

1. e4 {[%emt 0:07:59]} c6 {[%emt 0:00:13]} 2. d4 {[%emt 0:00:06]} d5 {[%emt 0:02:03]} 3. exd5 {[%emt 0:00:06]} cxd5 {[%emt 0:00:01]} 4. c4 {[%emt 1:24:19]} Nf6 {[%emt 0:00:04]} 5. Nc3 {[%emt 0:00:03]} g6 {[%emt 0:00:13]} 6. Qb3 {[%emt 1:25:05]} Bg7 {[%emt 0:00:05]} 7. cxd5 {[%emt 0:00:05]} O-O {[%emt 0:00:03]} 8. Be2 {[%emt 0:00:06]} Na6 {[%emt 0:00:05]} 9. Bf3 {[%emt 0:00:14]} b5 {[%emt 0:01:00]} 10. Nxb5 {[%emt 0:11:24]} Rb8 {[%emt 0:01:29]} 11. a4 {[%emt 0:01:00]} Nc7 {[%emt 0:00:31]} 12. Bf4 {[%emt 0:05:18]} Nfxd5 {[%emt 0:01:01]} 13. Bxd5 {[%emt 0:01:33]} e5 {[%emt 0:00:06]} 14. Bxe5 {[%emt 0:05:07]} Bxe5 {[%emt 0:00:25]} 15. dxe5 {[%emt 0:02:05]} Nxd5 {[%emt 0:00:46]} 16. Ne2 {[%emt 0:18:20]} a6 {[%emt 0:12:39]} 17. Rd1 {[%emt 0:45:11]} Be6 {[%emt 0:04:45]} 18. Nec3 {[%emt 0:00:36]} Qg5 {[%emt 0:06:33]} 19. Nxd5 {[%emt 0:07:28]} Qxg2 {[%emt 0:06:48]} 20. Rf1 {[%emt 0:00:05]} axb5 {[%emt 0:04:36]} 21. Nf6+ {[%emt 0:01:15]} Kg7 {[%emt 0:06:15]} 22. Qg3 {[%emt 0:00:58]} Qxg3 {[%emt 0:00:17]} 23. hxg3 {[%emt 0:00:03]} bxa4 {[%emt 0:00:09]} 24. Rd2 {[%emt 0:00:05]} Rb3 {[%emt 0:06:02]} 25. Rh1 {[%emt 0:01:48]} h5 {[%emt 0:02:35]} 26. Rh4 {[%emt 0:00:22]} Rb5 {[%emt 0:03:58]} 27. Re4 {[%emt 0:01:04]} *

[Event "XX Gran Hotel Bali-B 2023"]
[Site "Benidorm"]
[Date "2023.12.07"]
[Round "8.3"]
[White "Ionita, Emilian-Paul"]
[Black "Kao, Jamison Edrich"]
[Result "*"]
[ECO "B52"]
[WhiteElo "1899"]
[BlackElo "1701"]
[Annotator "NA RC"]
[PlyCount "54"]
[EventDate "2023.12.02"]
[EventType "swiss"]
[EventCountry "ESP"]
[SourceTitle "playchess.com"]
[Source "ChessBase"]
[SourceQuality "1"]
[TimeControl "5400+30"]

1. e4 {[%emt 0:00:06]} c5 {[%emt 0:00:01]} 2. Nf3 {[%emt 0:00:11]} Nc6 {[%emt 0:00:03]} 3. Bb5 {[%emt 0:00:22]} d6 {[%emt 0:00:02]} 4. O-O {[%emt 0:00:26]} Bd7 {[%emt 0:00:02]} 5. Re1 {[%emt 0:00:25]} Nf6 {[%emt 0:00:02]} 6. Nc3 {[%emt 0:02:39]} e5 {[%emt 0:02:02]} 7. a4 {[%emt 0:03:19]} Be7 {[%emt 0:00:19]} 8. d3 {[%emt 0:00:46]} O-O {[%emt 0:00:15]} 9. Bg5 {[%emt 0:05:39]} Ne8 {[%emt 0:03:23]} 10. Bxe7 {[%emt 0:01:41]} Qxe7 {[%emt 0:01:45]} 11. Nd5 {[%emt 0:03:04]} Qd8 {[%emt 0:00:15]} 12. c3 {[%emt 0:05:54]} Nc7 {[%emt 0:06:14]} 13. Nxc7 {[%emt 0:05:38]} Qxc7 {[%emt 0:00:05]} 14. h3 {[%emt 0:03:25]} a6 {[%emt 0:05:49]} 15. Bc4 {[%emt 0:00:26]} Rab8 {[%emt 0:00:31]} 16. Qe2 {[%emt 0:10:02]} b5 {[%emt 0:00:49]} 17. axb5 {[%emt 0:00:07]} axb5 {[%emt 0:00:03]} 18. Bd5 {[%emt 0:00:07]} Ne7 {[%emt 0:05:06]} 19. Ba2 {[%emt 0:05:22]} Ng6 {[%emt 0:00:43]} 20. d4 {[%emt 0:01:50]} c4 {[%emt 0:00:00]} 21. Bb1 {[%emt 0:03:44]} Rfc8 {[%emt 0:01:00]} 22. dxe5 {[%emt 0:07:32]} dxe5 {[%emt 0:00:00]} 23. Qe3 {[%emt 0:01:37]} Rb6 {[%emt 0:00:00]} 24. Rd1 {[%emt 0:00:00]} Be8 {[%emt 0:00:00]} 25. Rd5 {[%emt 0:00:00]} f6 {[%emt 0:00:00]} 26. g3 {[%emt 0:00:00]} Bf7 {[%emt 0:00:00]} 27. Rd2 {[%emt 0:00:00]} Rcb8 {[%emt 0:00:00]} *

[Event "XX Gran Hotel Bali-B 2023"]
[Site "Benidorm"]
[Date "2023.12.07"]
[Round "8.4"]
[White "Vladut, Matei"]
[Black "Exposito Perez, Luis"]
[Result "*"]
[ECO "E07"]
[WhiteElo "1989"]
[BlackElo "1922"]
[Annotator "RC"]
[PlyCount "44"]
[EventDate "2023.12.02"]
[EventType "swiss"]
[EventCountry "ESP"]
[SourceTitle "playchess.com"]
[Source "ChessBase"]
[SourceQuality "1"]
[TimeControl "5400+30"]

1. g3 {[%emt 0:00:21]} Nf6 {[%emt 0:00:24]} 2. Bg2 {[%emt 1:31:09]} e6 {[%emt 0:00:14]} 3. Nf3 {[%emt 0:00:24]} d5 {[%emt 0:00:11]} 4. c4 {[%emt 0:00:09]} Be7 {[%emt 0:00:23]} 5. O-O {[%emt 0:00:10]} O-O {[%emt 0:00:18]} 6. d4 {[%emt 0:00:12]} Nbd7 {[%emt 0:00:57]} 7. Nc3 {[%emt 0:00:10]} c6 {[%emt 0:00:42]} 8. Nd2 {[%emt 0:12:13]} b6 {[%emt 0:03:47]} 9. e4 dxe4 {[%emt 0:05:18]} 10. Ndxe4 {[%emt 0:00:35]} Bb7 {[%emt 0:00:39]} 11. Qa4 {[%emt 0:06:45]} Qc8 {[%emt 0:17:24]} 12. Rd1 {[%emt 0:17:08]} Rd8 {[%emt 0:08:46]} 13. Be3 {[%emt 0:02:33]} Nxe4 {[%emt 0:04:41]} 14. Nxe4 {[%emt 0:00:02]} Nf6 {[%emt 0:05:23]} 15. Rac1 {[%emt 0:04:48]} Nxe4 {[%emt 0:04:05]} 16. Bxe4 {[%emt 0:00:08]} Qd7 {[%emt 0:01:07]} 17. c5 {[%emt 0:07:16]} b5 {[%emt 0:04:16]} 18. Qc2 {[%emt 0:01:49]} g6 {[%emt 0:01:45]} 19. h4 {[%emt 0:01:03]} Qe8 {[%emt 0:03:20]} 20. a4 {[%emt 0:02:45]} a6 {[%emt 0:36:50]} 21. Bf4 {[%emt 0:42:24]} Bf6 {[%emt 0:01:48]} 22. Be5 {[%emt 0:00:30]} Bg7 {[%emt 0:03:08]} *

[Event "XX Gran Hotel Bali-B 2023"]
[Site "Benidorm"]
[Date "2023.12.07"]
[Round "8.5"]
[White "Sempere Domenech, Abel"]
[Black "Martinez Herranz, Francisco Jose"]
[Result "*"]
[ECO "E61"]
[WhiteElo "1981"]
[BlackElo "1923"]
[Annotator "NA RC"]
[PlyCount "33"]
[EventDate "2023.12.02"]
[EventType "swiss"]
[EventCountry "ESP"]
[SourceTitle "playchess.com"]
[Source "ChessBase"]
[SourceQuality "1"]
[TimeControl "5400+30"]

1. d4 {[%emt 1:31:00]} Nf6 {[%emt 0:00:11]} 2. c4 {[%emt 0:00:10]} d6 {[%emt 0:00:08]} 3. Nf3 {[%emt 0:03:22]} g6 {[%emt 0:00:24]} 4. Nc3 {[%emt 0:00:03]} Bf5 {[%emt 0:01:31]} 5. Qb3 {[%emt 0:00:59]} b6 {[%emt 0:00:53]} 6. Ng5 {[%emt 0:03:07]} Bg7 {[%emt 0:09:15]} 7. e4 {[%emt 0:00:51]} Bd7 {[%emt 0:00:46]} 8. c5 {[%emt 0:12:41]} e6 {[%emt 1:21:22]} 9. cxd6 {[%emt 1:08:58]} cxd6 {[%emt 0:00:29]} 10. Bf4 {[%emt 0:11:36]} Nh5 {[%emt 0:07:15]} 11. Be3 {[%emt 0:02:37]} O-O {[%emt 0:02:47]} 12. Be2 {[%emt 0:00:48]} Nc6 {[%emt 0:09:37]} 13. Nf3 {[%emt 0:40:18]} Nf6 {[%emt 0:05:27]} 14. O-O {[%emt 0:00:13]} h6 {[%emt 0:05:56]} 15. h3 {[%emt 0:01:57]} Qe7 {[%emt 0:42:58]} 16. Rac1 {[%emt 0:04:49]} Ne8 {[%emt 0:04:09]} 17. Rfd1 {[%emt 0:03:47]} *

[Event "XX Gran Hotel Bali-B 2023"]
[Site "Benidorm"]
[Date "2023.12.07"]
[Round "8.6"]
[White "Santamaria Baeza, Adolfo"]
[Black "Alcaraz Soriano, Angela"]
[Result "*"]
[ECO "B12"]
[WhiteElo "1885"]
[BlackElo "1977"]
[Annotator "RC"]
[PlyCount "59"]
[EventDate "2023.12.02"]
[EventType "swiss"]
[EventCountry "ESP"]
[SourceTitle "playchess.com"]
[Source "ChessBase"]
[SourceQuality "1"]
[TimeControl "5400+30"]

1. e4 {[%emt 0:00:29]} c6 {[%emt 0:00:13]} 2. d4 {[%emt 0:01:20]} d5 {[%emt 0:00:04]} 3. e5 {[%emt 0:02:03]} Bf5 {[%emt 0:00:31]} 4. Nf3 {[%emt 0:01:33]} e6 {[%emt 0:00:10]} 5. Nbd2 {[%emt 0:00:25]} Ne7 {[%emt 0:01:18]} 6. Be2 {[%emt 0:03:49]} Nd7 {[%emt 0:00:22]} 7. O-O {[%emt 0:00:43]} h6 {[%emt 0:00:16]} 8. c4 {[%emt 0:00:22]} dxc4 {[%emt 0:06:49]} 9. Nxc4 {[%emt 0:00:37]} Nd5 {[%emt 0:00:22]} 10. Qb3 {[%emt 0:02:36]} Qc7 {[%emt 0:01:51]} 11. Bd2 {[%emt 0:00:40]} Be7 {[%emt 0:01:55]} 12. Rac1 {[%emt 0:04:51]} O-O {[%emt 0:01:08]} 13. h3 {[%emt 0:02:03]} Rfd8 {[%emt 0:04:26]} 14. Ne3 {[%emt 0:03:36]} Nxe3 {[%emt 0:02:45]} 15. Qxe3 {[%emt 0:02:35]} Nb6 {[%emt 0:00:51]} 16. Ba5 {[%emt 0:00:33]} Rd5 {[%emt 0:03:11]} 17. Bd2 {[%emt 0:03:07]} Rad8 {[%emt 0:01:39]} 18. Qf4 {[%emt 0:00:39]} Bg5 {[%emt 0:06:02]} 19. Nxg5 {[%emt 0:00:42]} Rxd4 {[%emt 0:00:28]} 20. Qe3 {[%emt 0:05:09]} Rxd2 {[%emt 0:01:21]} 21. Nf3 {[%emt 0:00:49]} Rxb2 {[%emt 0:00:36]} 22. Bc4 {[%emt 0:02:56]} Nxc4 {[%emt 0:00:42]} 23. Rxc4 {[%emt 1:00:23]} Bd3 {[%emt 0:00:11]} 24. Rg4 {[%emt 1:00:34]} Kh8 {[%emt 0:20:10]} 25. Rd1 {[%emt 0:05:40]} Re2 {[%emt 0:45:39]} 26. Qxa7 {[%emt 0:01:22]} Ba6 {[%emt 0:05:16]} 27. Rxd8+ {[%emt 0:00:26]} Qxd8 {[%emt 0:00:06]} 28. Rd4 {[%emt 0:00:35]} Qa5 {[%emt 0:03:29]} 29. Qb8+ {[%emt 0:01:39]} Kh7 {[%emt 0:01:52]} 30. Qf8 {[%emt 0:07:32]} *

[Event "XX Gran Hotel Bali-B 2023"]
[Site "Benidorm"]
[Date "2023.12.07"]
[Round "8.7"]
[White "Blanco Garcia Bajo, David"]
[Black "Lloret Climent, Miguel"]
[Result "*"]
[ECO "A06"]
[WhiteElo "1812"]
[BlackElo "1954"]
[Annotator "NA RC"]
[PlyCount "38"]
[EventDate "2023.12.02"]
[EventType "swiss"]
[EventCountry "ESP"]
[SourceTitle "playchess.com"]
[Source "ChessBase"]
[SourceQuality "1"]
[TimeControl "5400+30"]

1. Nf3 {[%emt 0:00:04]} d5 {[%emt 0:01:51]} 2. b3 {[%emt 0:00:07]} Nf6 {[%emt 0:02:09]} 3. Bb2 {[%emt 0:00:10]} c5 {[%emt 0:01:25]} 4. e3 {[%emt 0:00:27]} Nc6 {[%emt 0:01:08]} 5. Bb5 {[%emt 1:32:12]} Bg4 {[%emt 0:02:13]} 6. h3 {[%emt 0:12:04]} Bd7 {[%emt 0:01:00]} 7. Bxc6 {[%emt 0:03:28]} Bxc6 {[%emt 0:00:40]} 8. Ne5 {[%emt 0:01:04]} Rc8 {[%emt 0:02:10]} 9. d4 {[%emt 0:04:32]} e6 {[%emt 1:22:24]} 10. Nxc6 {[%emt 0:07:58]} Rxc6 {[%emt 0:01:02]} 11. dxc5 {[%emt 0:02:26]} Bxc5 {[%emt 0:01:05]} 12. O-O {[%emt 1:03:32]} O-O {[%emt 0:01:23]} 13. Nd2 {[%emt 0:06:24]} Re8 {[%emt 0:07:54]} 14. c4 {[%emt 0:05:56]} Bb4 {[%emt 0:10:46]} 15. cxd5 {[%emt 0:04:41]} exd5 {[%emt 1:00:24]} 16. Nf3 {[%emt 0:05:23]} Bc3 {[%emt 0:10:35]} 17. Bxc3 {[%emt 0:02:50]} Rxc3 {[%emt 0:00:14]} 18. Rc1 {[%emt 0:05:58]} Qc7 {[%emt 0:05:24]} 19. Rxc3 {[%emt 0:05:24]} Qxc3 {[%emt 0:00:11]} *

[Event "XX Gran Hotel Bali-B 2023"]
[Site "Benidorm"]
[Date "2023.12.07"]
[Round "8.8"]
[White "Castillo Garcia, Adrian"]
[Black "Conde Chamizo, Pablo"]
[Result "*"]
[ECO "D00"]
[WhiteElo "1974"]
[BlackElo "1905"]
[Annotator "RC"]
[PlyCount "46"]
[EventDate "2023.12.02"]
[EventType "swiss"]
[EventCountry "ESP"]
[SourceTitle "playchess.com"]
[Source "ChessBase"]
[SourceQuality "1"]
[TimeControl "5400+30"]

1. d4 {[%emt 0:01:03]} Nf6 {[%emt 0:02:28]} 2. Nc3 {[%emt 0:00:31]} d5 {[%emt 0:01:51]} 3. Bf4 {[%emt 0:00:11]} e6 {[%emt 0:01:52]} 4. e3 {[%emt 0:02:33]} Bb4 {[%emt 0:02:54]} 5. Nge2 {[%emt 0:02:56]} Ne4 {[%emt 0:03:58]} 6. f3 {[%emt 0:03:42]} Nxc3 {[%emt 0:02:49]} 7. Nxc3 {[%emt 0:01:16]} c5 {[%emt 0:02:23]} 8. a3 {[%emt 0:04:10]} Bxc3+ {[%emt 0:01:31]} 9. bxc3 {[%emt 0:00:02]} Nc6 {[%emt 0:00:46]} 10. Bb5 {[%emt 0:03:31]} cxd4 {[%emt 0:03:01]} 11. Bxc6+ {[%emt 0:02:34]} bxc6 {[%emt 0:00:07]} 12. cxd4 {[%emt 0:00:16]} Ba6 {[%emt 0:02:32]} 13. Qd2 {[%emt 0:02:10]} O-O {[%emt 0:08:24]} 14. Kf2 {[%emt 1:12:35]} h5 {[%emt 0:01:38]} 15. h4 {[%emt 0:03:42]} Qe7 {[%emt 0:03:00]} 16. Qa5 {[%emt 0:07:41]} Bc4 {[%emt 0:59:16]} 17. Rab1 {[%emt 0:03:42]} Rfc8 {[%emt 0:01:44]} 18. Qc5 {[%emt 0:10:17]} Qxc5 {[%emt 0:03:15]} 19. dxc5 {[%emt 0:00:11]} f6 {[%emt 0:01:17]} 20. Bd6 {[%emt 0:01:04]} Bb5 {[%emt 0:00:48]} 21. g4 {[%emt 0:06:00]} hxg4 {[%emt 0:09:45]} 22. Rhg1 {[%emt 0:05:29]} gxf3 {[%emt 0:02:00]} 23. a4 {[%emt 0:00:45]} Ba6 {[%emt 0:00:06]} *

[Event "XX Gran Hotel Bali-B 2023"]
[Site "Benidorm"]
[Date "2023.12.07"]
[Round "8.9"]
[White "Buitron Ramil, David"]
[Black "Calatayud Ortega, Alberto"]
[Result "*"]
[ECO "B15"]
[WhiteElo "1948"]
[BlackElo "1863"]
[Annotator "NA RC"]
[PlyCount "47"]
[EventDate "2023.12.02"]
[EventType "swiss"]
[EventCountry "ESP"]
[SourceTitle "playchess.com"]
[Source "ChessBase"]
[SourceQuality "1"]
[TimeControl "5400+30"]

1. e4 {[%emt 0:00:04]} c6 {[%emt 0:00:12]} 2. d4 {[%emt 0:00:04]} d5 {[%emt 0:00:04]} 3. Nc3 {[%emt 0:00:05]} dxe4 {[%emt 0:00:07]} 4. Nxe4 {[%emt 1:32:17]} Nf6 {[%emt 0:00:06]} 5. Ng3 {[%emt 0:02:31]} h5 {[%emt 0:00:09]} 6. h4 {[%emt 0:00:30]} g6 {[%emt 0:00:05]} 7. Bg5 {[%emt 0:01:32]} Bg7 {[%emt 0:00:14]} 8. Qd2 {[%emt 0:00:34]} Be6 {[%emt 0:06:58]} 9. N1e2 {[%emt 0:01:19]} Qb6 {[%emt 0:06:03]} 10. c3 {[%emt 0:01:44]} Bc4 {[%emt 0:03:22]} 11. b3 {[%emt 0:02:25]} Bxe2 {[%emt 0:02:15]} 12. Bxe2 {[%emt 0:00:12]} Nbd7 {[%emt 0:03:19]} 13. O-O {[%emt 0:04:02]} e6 {[%emt 0:09:55]} 14. c4 {[%emt 0:01:49]} O-O {[%emt 1:04:41]} 15. Bf3 {[%emt 0:05:13]} Rfe8 {[%emt 0:08:38]} 16. Rad1 {[%emt 0:01:59]} Rad8 {[%emt 0:00:00]} 17. Qf4 {[%emt 0:00:43]} Rc8 {[%emt 0:00:00]} 18. Rfe1 {[%emt 0:12:28]} Qa5 {[%emt 0:00:00]} 19. Rd2 {[%emt 0:03:17]} Qb4 {[%emt 0:00:00]} 20. Red1 {[%emt 0:01:50]} Qf8 {[%emt 0:00:00]} 21. Ne4 {[%emt 0:08:12]} Nxe4 {[%emt 0:00:00]} 22. Qxe4 {[%emt 0:00:14]} Nf6 {[%emt 0:00:00]} 23. Qb1 {[%emt 0:00:35]} Nh7 {[%emt 0:00:00]} 24. Be3 {[%emt 0:00:54]} *